lending/lending_fUSD_20260206
["ID","MTS","AMOUNT","RATE_DAILY","PERIOD"]
[404621980,1770339043881,-5530.0,0.000148,3]
[404621981,1770339043891,-433.0,0.00014821,2]
[404621982,1770339043901,-155.0,0.00014846,2]
[404621983,1770339043911,-320.74051982,0.00014907,2]
[404621984,1770339043920,-151.0,0.00014956,2]
[404621985,1770339043937,-20015.58724295,0.00014959,2]
[404621988,1770339045936,-2020.869312,0.00014959,2]
[404621989,1770339046195,-22666.83449995,0.00014959,2]
[404621990,1770339046205,-8604.45296004,0.0001499,2]
[404621991,1770339046214,-563.821945,0.0001499,2]
[404621992,1770339046223,-563.821945,0.0001499,2]
[404621993,1770339046234,-563.821945,0.0001499,2]
[404621994,1770339046243,-563.821949,0.0001499,2]
[404621995,1770339046252,-1000.0,0.00015,2]
[404621996,1770339046262,-5530.0,0.00015,5]
[404621997,1770339046272,-250.0,0.00015,2]
[404621998,1770339046281,-152.38,0.00015,2]
[404621999,1770339046290,-152.38,0.00015,2]
[404622000,1770339046299,-152.38,0.00015,2]
[404622001,1770339046308,-152.38,0.00015,2]
[404622002,1770339046318,-152.38,0.00015,2]
[404622003,1770339046327,-152.38,0.00015,2]
[404622004,1770339046336,-150.73,0.00015014,2]
[404622005,1770339046345,-432.0,0.00015048,2]
[404622006,1770339046354,-6600.10570196,0.00015063,2]
[404622007,1770339046366,-478.0,0.00015063,2]
[404622008,1770339046410,-19.08662544,0.00015063,2]
[404622009,1770339046420,-418.49,0.00015068,2]
[404622010,1770339046432,-450.0,0.00015068,2]
[404622011,1770339046442,-151.0,0.00015068,2]
[404622012,1770339046452,-151.0,0.00015068,2]
[404622013,1770339046462,-151.0,0.00015068,2]
[404622014,1770339046471,-151.0,0.00015068,2]
[404622016,1770339046480,-151.0,0.00015068,2]
[404622018,1770339046489,-151.0,0.00015068,2]
[404622020,1770339046499,-151.0,0.00015068,2]
[404622022,1770339046508,-151.0,0.00015068,2]
[404622024,1770339046517,-151.0,0.00015068,2]
[404622026,1770339046526,-151.0,0.00015068,2]
[404622028,1770339046536,-151.0,0.00015068,2]
[404622030,1770339046545,-215.509232,0.00015068,2]
[404622032,1770339046554,-962.31414272,0.000151,2]
[404622141,1770339047664,150.0,0.00011918,2]
[404622207,1770339082665,150.0,0.00012641,2]
[404622208,1770339082846,150.0,0.00012696,2]
[404622209,1770339083035,274.96653099,0.00012751,2]
[404622210,1770339084048,500.0,0.00012641,2]
[404622211,1770339084252,500.0,0.00012696,2]
[404622212,1770339084724,500.0,0.00012751,2]
[404622213,1770339084934,500.0,0.00012805,2]
[404622214,1770339085511,500.0,0.0001286,2]
[404622215,1770339085544,500.0,0.00012915,2]
[404622216,1770339085720,500.0,0.0001297,2]
[404622217,1770339085889,500.0,0.00013025,2]
[404622218,1770339086064,500.0,0.00013079,2]
[404622219,1770339086255,543.64643338,0.00013134,2]
[404622220,1770339211490,-300.0,0.00013697,2]
[404622221,1770339211513,-873.0,0.00013697,2]
[404622222,1770339211537,-500.0,0.00013698,2]
[404622223,1770339211559,-521.5137665,0.00013698,2]
[404622224,1770339211586,-767.91,0.00013698,2]
[404622225,1770339211610,-500.0,0.00013698,2]
[404622226,1770339211633,-385.3762335,0.00013698,2]
[404622227,1770339275193,324.93,0.00011918,2]
[404622228,1770339339654,500.0,0.00013598,2]
[404622229,1770339412850,2417.0707,0.00013598,2]
[404622230,1770339476009,-165.0,0.000204,120]
[404622231,1770339476036,-166.0,0.000204,120]
[404622232,1770339476058,-160.0,0.000204,120]
[404622233,1770339476084,-367.0,0.000204,120]
[404622234,1770339476107,-220.0,0.000204,120]
[404622235,1770339476130,-165.0,0.0002142,120]
[404622236,1770339476153,-166.0,0.0002142,120]
[404622237,1770339476175,-160.0,0.0002142,120]
[404622238,1770339476197,-367.0,0.0002142,120]
[404622239,1770339476218,-220.0,0.0002142,120]
[404622240,1770339480499,500.0,0.00013598,2]
[404622241,1770339570547,639.39633563,0.00011233,2]
[404622242,1770339570571,7129.96366437,0.00011233,2]
[404622243,1770339642223,500.0,0.00013597,2]
[404622244,1770339662721,10000.01,0.00013598,2]
[404622246,1770339691869,166.66,0.00013234,2]
[404622247,1770339693535,3851.132,0.00013326,2]
[404622248,1770339693797,348.651,0.00013326,2]
[404622250,1770339858559,-168.99497017,0.00013497,2]
[404622251,1770339858587,-300.0,0.00013498,2]
[404622252,1770339858609,-150.0,0.00013499,2]
[404622253,1770339858630,-300.0,0.00013499,2]
[404622254,1770339858655,-302.71997738,0.000135,2]
[404622255,1770339858678,-8.28505245,0.000135,2]
[404622256,1770339877210,-1384.19530251,0.000135,2]
[404622257,1770339877433,-10000.01,0.000135,2]
[404622258,1770339877661,-10000.01,0.000135,2]
[404622259,1770339877778,-10000.01,0.000135,2]
[404622260,1770339878093,-4289.61107749,0.000135,2]
[404622261,1770339878123,-186.45673026,0.000135,2]
[404622262,1770339878153,-382.1434577,0.000135,2]
[404622263,1770339878209,-283.5874691,0.000135,2]
[404622264,1770339878284,-283.5874691,0.000135,2]
[404622265,1770339878303,-9432.8350618,0.000135,2]
[404622266,1770339878390,-10000.01,0.000135,2]
[404622267,1770339878481,-10000.01,0.000135,2]
[404622268,1770339878528,-10000.01,0.000135,2]
[404622269,1770339880057,-10000.01,0.000135,2]
[404622270,1770339880178,-10000.01,0.000135,2]
[404622271,1770339883234,-802.79926382,0.000135,2]
[404622272,1770339885725,204.48179302,0.000135,2]
[404622273,1770339895357,1309.820125,0.00013444,2]
[404622274,1770339910949,5964.09979221,0.000135,2]
[404622275,1770339924118,186.45673025,0.000135,2]
[404622276,1770339929941,729.55303188,0.00013498,2]
[404622277,1770339929971,4637.69796812,0.00013498,2]
[404622278,1770339963016,443.82061786,0.000135,2]
[404622279,1770339980117,1659.32618518,0.000135,2]
[404622280,1770339984640,3259.16522884,0.00013498,2]
[404622281,1770339984675,10000.01,0.00013498,2]
[404622282,1770339984714,10000.01,0.00013498,2]
[404622283,1770339984746,10000.01,0.00013498,2]
[404622284,1770339984780,10000.01,0.00013498,2]
[404622285,1770339984816,10000.01,0.00013498,2]
[404622286,1770339984849,10000.01,0.00013498,2]
[404622287,1770339984882,10000.01,0.00013498,2]
[404622288,1770339984914,10000.01,0.00013498,2]
[404622289,1770339984950,10000.01,0.00013498,2]
[404622290,1770340000018,-1605.59852764,0.00013498,2]
[404622291,1770340000113,-10000.01,0.00013498,2]
[404622292,1770340000247,-10000.01,0.00013498,2]
[404622293,1770340000364,-10000.01,0.00013498,2]
[404622294,1770340000480,-10000.01,0.00013498,2]
[404622295,1770340000575,-10000.01,0.00013498,2]
[404622296,1770340008877,-10000.01,0.00013498,2]
[404622297,1770340009023,-10000.01,0.00013498,2]
[404622298,1770340009174,-10000.01,0.00013498,2]
[404622299,1770340014968,-10000.01,0.00013498,2]
[404622300,1770340015189,-10000.01,0.00013498,2]
[404622301,1770340015325,-10000.01,0.00013498,2]
[404622302,1770340016093,204.481793,0.00013398,2]
[404622303,1770340024066,168.99497017,0.00013398,2]
[404622304,1770340030993,4770.5676386,0.00013398,2]
[404622305,1770340033315,151.0,0.00013495,2]
[404622306,1770340039197,1600.0,0.000126,4]
[404622307,1770340041289,3200.0,0.000127,4]
[404622308,1770340043393,200.01,0.000128,4]
[404622309,1770340043414,4699.99,0.000128,4]
[404622310,1770340044371,186.45673025,0.00013398,2]
[404622311,1770340045492,113.56326975,0.000129,4]
[404622312,1770340045513,5000.01,0.000129,4]
[404622313,1770340045534,1386.42673025,0.000129,4]
[404622314,1770340059854,1653.2,0.00012,2]
[404622316,1770340093397,348.79029836,0.00013398,2]
[404622318,1770340136990,204.481793,0.00013398,2]
[404622319,1770340147683,272.91893207,0.00013398,2]
[404622320,1770340151162,1134.19224632,0.00013398,2]
[404622321,1770340151184,2413.34588114,0.00013398,2]
[404622322,1770340154185,151.0,0.00013495,2]
[404622323,1770340160629,841.74096107,0.00013398,2]
[404622325,1770340223612,232.52686556,0.00013398,2]
[404622340,1770340231959,-2933.15933128,0.00013497,2]
[404622342,1770340231970,-133.89380898,0.00013497,2]
[404622344,1770340231983,-166.10619102,0.00013497,2]
[404622347,1770340231992,-300.51454079,0.00013497,2]
[404622349,1770340232002,-155.0,0.00013497,2]
[404622351,1770340232011,-150.0,0.00013497,2]
[404622353,1770340232021,-300.0,0.00013497,2]
[404622355,1770340232031,-1200.0,0.00013497,2]
[404622357,1770340232041,-300.0,0.00013497,2]
[404622358,1770340232051,-261.0,0.00013497,2]
[404622359,1770340232060,-486.02612793,0.00013497,2]
[404622360,1770340232081,-13.97387207,0.00013497,2]
[404622361,1770340232090,-500.0,0.00013497,2]
[404622362,1770340232100,-500.0,0.00013497,2]
[404622363,1770340232109,-500.0,0.00013497,2]
[404622364,1770340232123,-500.0,0.00013497,2]
[404622365,1770340232132,-500.0,0.00013497,2]
[404622366,1770340232142,-500.0,0.00013497,2]
[404622367,1770340232152,-500.0,0.00013497,2]
[404622368,1770340232161,-500.0,0.00013497,2]
[404622369,1770340232170,-500.0,0.00013497,2]
[404622370,1770340232180,-500.0,0.00013497,2]
[404622371,1770340232189,-500.0,0.00013497,2]
[404622372,1770340232199,-500.0,0.00013497,2]
[404622373,1770340232208,-500.0,0.00013497,2]
[404622374,1770340232218,-500.0,0.00013497,2]
[404622375,1770340232228,-500.0,0.00013497,2]
[404622376,1770340232237,-500.0,0.00013497,2]
[404622377,1770340232247,-500.0,0.00013497,2]
[404622379,1770340232257,-500.0,0.00013497,2]
[404622380,1770340232267,-500.0,0.00013497,2]
[404622381,1770340232276,-500.0,0.00013497,2]
[404622382,1770340232289,-500.0,0.00013497,2]
[404622383,1770340232299,-321.59750415,0.00013497,2]
[404622384,1770340232308,-500.0,0.00013497,2]
[404622386,1770340232318,-500.0,0.00013497,2]
[404622388,1770340232330,-500.0,0.00013497,2]
[404622390,1770340232340,-500.0,0.00013497,2]
[404622391,1770340232349,-500.0,0.00013497,2]
[404622392,1770340232360,-500.0,0.00013497,2]
[404622394,1770340232374,-500.0,0.00013497,2]
[404622396,1770340232385,-500.0,0.00013497,2]
[404622398,1770340232394,-306.19716818,0.00013497,2]
[404622400,1770340232404,-250.0,0.00013498,2]
[404622402,1770340232414,-151.0,0.00013498,2]
[404622404,1770340232424,-151.0,0.00013498,2]
[404622406,1770340232434,-2814.29121732,0.00013498,2]
[404622409,1770340232450,-9123.7316167,0.00013498,2]
[404622411,1770340232462,-19649.30259693,0.00013498,2]
[404622416,1770340232495,-2230.77859468,0.00013498,2]
[404622428,1770340238064,-151.0,0.00013498,2]
[404622429,1770340238074,-179696.57284729,0.00013498,2]
[404622430,1770340238129,-3191.8196925,0.00013498,2]
[404622431,1770340238141,-2574.2841,0.00013498,2]
[404622432,1770340238184,-1317.10230759,0.00013498,2]
[404622433,1770340238245,-36014.69978339,0.00013498,2]
[404622434,1770340238256,-640.69,0.00013498,2]
[404622435,1770340238303,-449.40139941,0.00013498,2]
[404622436,1770340238315,-382.845777,0.00013498,2]
[404622437,1770340238327,-955.57831502,0.00013498,2]
[404622438,1770340238338,-539.93551002,0.00013498,2]
[404622439,1770340238351,-984.20333733,0.00013498,2]
[404622449,1770340240036,-176.9028839,0.00013498,2]
[404622451,1770340240046,-733.31660365,0.00013498,2]
[404622453,1770340240057,-325.7298097,0.00013498,2]
[404622458,1770340240258,-5990.53668477,0.00013498,2]
[404622459,1770340240271,-290769.96904765,0.00013498,2]
[404622460,1770340240284,-299.62426242,0.00013498,2]
[404622461,1770340240296,-782.57676608,0.00013498,2]
[404622462,1770340240308,-6458.0,0.00013498,2]
[404622497,1770340243719,-12855.88727996,0.00013498,2]
[404622499,1770340243853,-9.5835031,0.00013498,2]
[404622500,1770340243864,-2540.27579354,0.00013498,2]
[404622501,1770340243946,-63.26308012,0.00013498,2]
[404622502,1770340243958,-15829.81986348,0.00013498,2]
[404622503,1770340244778,-1400.4864202,0.00013498,2]
[404622504,1770340244857,-6562.74320938,0.00013498,2]
[404622505,1770340244874,-1584.90943152,0.00013498,2]
[404622506,1770340244888,-293.47590332,0.00013498,2]
[404622507,1770340244900,-225027.38095613,0.00013498,2]
[404622508,1770340244911,-550.0,0.00013498,2]
[404622517,1770340246206,-12838.09722876,0.00013498,2]
[404622518,1770340246263,-1908.19195775,0.00013498,2]
[404622519,1770340246275,-925.2166,0.00013498,2]
[404622523,1770340248214,5000.01,0.00013398,2]
[404622524,1770340248235,5000.01,0.00013398,2]
[404622525,1770340248257,5000.01,0.00013398,2]
[404622526,1770340248280,5000.01,0.00013398,2]
[404622527,1770340248305,5000.01,0.00013398,2]
[404622528,1770340248328,5000.01,0.00013398,2]
[404622529,1770340248351,5000.01,0.00013398,2]
[404622530,1770340248380,5000.01,0.00013398,2]
[404622531,1770340248401,5000.01,0.00013398,2]
[404622532,1770340248422,5000.01,0.00013398,2]
[404622533,1770340248444,8102.19748846,0.00013398,2]
[404622535,1770340260950,1697.77608848,0.00013398,2]
[404622539,1770340276614,151.0,0.00013495,2]
[404622540,1770340284974,3151.23391152,0.00013398,2]
[404622541,1770340284994,5000.01,0.00013398,2]
[404622542,1770340285015,5000.01,0.00013398,2]
[404622543,1770340285036,5000.01,0.00013398,2]
[404622544,1770340285057,5000.01,0.00013398,2]
[404622545,1770340285076,5000.01,0.00013398,2]
[404622546,1770340285096,5000.01,0.00013398,2]
[404622547,1770340285117,1776.71566871,0.00013398,2]
[404622548,1770340293527,3223.29433129,0.00013228,2]
[404622549,1770340293548,1941.24366871,0.00013228,2]
[404622550,1770340293622,426.292,0.00013228,2]
[404622551,1770340300827,150.0,0.00013471,2]
[404622552,1770340326382,4850.01,0.00013398,2]
[404622553,1770340326409,5000.01,0.00013398,2]
[404622554,1770340326438,5000.01,0.00013398,2]
[404622555,1770340326462,5000.01,0.00013398,2]
[404622556,1770340326490,1665.28564598,0.00013398,2]
[404622557,1770340326516,10000.01,0.00013398,2]
[404622558,1770340326541,10000.01,0.00013398,2]
[404622559,1770340326567,10000.01,0.00013398,2]
[404622560,1770340326592,10000.01,0.00013398,2]
[404622561,1770340326616,10000.01,0.00013398,2]
[404622562,1770340326639,10000.01,0.00013398,2]
[404622563,1770340326663,10000.01,0.00013398,2]
[404622564,1770340326689,10000.01,0.00013398,2]
[404622565,1770340326713,10000.01,0.00013398,2]
[404622566,1770340329405,150.0,0.0001393,120]
[404622567,1770340333927,-9176.99333459,0.00013398,2]
[404622568,1770340335862,-10000.01,0.00013398,2]
[404622569,1770340336012,-10000.01,0.00013398,2]
[404622570,1770340336122,-10000.01,0.00013398,2]
[404622571,1770340337554,-10000.01,0.00013398,2]
[404622572,1770340338672,-10000.01,0.00013398,2]
[404622573,1770340338779,-10000.01,0.00013398,2]
[404622574,1770340338922,-10000.01,0.00013398,2]
[404622575,1770340339016,-10000.01,0.00013398,2]
[404622576,1770340339121,-10000.01,0.00013398,2]
[404622577,1770340341813,-10000.01,0.00013398,2]
[404622602,1770340492213,-437.1224501,0.0001339,2]
[404622603,1770340492242,-155.01791038,0.0001339,2]
[404622604,1770340493319,4842.75091682,0.00013388,2]
[404622634,1770340521661,4873.5621541,0.00013298,2]
[404622635,1770340521721,126.4478459,0.00013325,2]
[404622636,1770340521747,2621.42522416,0.00013325,2]
[404622637,1770340528008,2378.58477584,0.00013298,2]
[404622638,1770340528028,121.41522416,0.00013298,2]
[404622639,1770340537452,181.94595472,0.00013325,2]
[404622640,1770340541965,1485.55407742,0.00013325,2]
[404622641,1770340555036,183.86280079,0.00013325,2]
[404622648,1770340577006,3148.64716707,0.00013298,2]
[404622649,1770340577028,1294.76943293,0.00013298,2]
[404622664,1770340634350,5000.01,0.00013325,2]
[404622665,1770340634372,3972.97836222,0.00013325,2]
[404622666,1770340634394,10000.01,0.00013325,2]
[404622667,1770340634422,10000.01,0.00013325,2]
[404622668,1770340634448,10000.01,0.00013325,2]
[404622669,1770340634483,10000.01,0.00013325,2]
[404622670,1770340634508,8221.75925154,0.00013325,2]
[404622671,1770340634538,1778.25074846,0.00013298,2]
[404622672,1770340634560,10000.01,0.00013298,2]
[404622673,1770340634583,10000.01,0.00013298,2]
[404622674,1770340634605,10000.01,0.00013298,2]
[404622675,1770340640253,-1519.89305154,0.00013298,2]
[404622676,1770340641899,1831.91538004,0.00013325,2]
[404622677,1770340648663,128.30851688,0.00013298,2]
[404622682,1770340688338,5000.01,7.945e-05,2]
[404622683,1770340688360,1680.664435,7.945e-05,2]
[404622684,1770340699318,3319.345565,0.00013227,2]
[404622879,1770340869447,2237.209247,0.00012537,2]
[404622886,1770341022067,172.2,9.903e-05,2]
[404622887,1770341022261,172.2,0.00012379,2]
[404622888,1770341031834,-200.0,0.000126,4]
[404622889,1770341031858,-250.0,0.0001265,2]
[404622890,1770341031883,-500.0,0.000127,4]
[404622891,1770341031907,-109.0,0.000128,4]
[404622922,1770341079432,154.88,0.0001242,2]
[404622923,1770341080292,500.0,0.000125,2]
[404622924,1770341179940,570.6,0.00012451,2]
[404622925,1770341212158,150.0,0.00012474,2]
[404622926,1770341251279,1200.0,0.000126,4]
[404622927,1770341254840,-500.0,0.000127,2]
[404622928,1770341254871,-1500.01,0.000127,4]
[404622929,1770341255086,-999.99,0.000127,4]
[404622930,1770341268351,-3800.0,0.000128,4]
[404622932,1770341270986,-250.0,0.00012809,2]
[404622934,1770341293217,1934.75386149,0.0001,2]
[404622936,1770341305212,2740.247008,0.0001,2]
[404622939,1770341315340,5325.00913051,0.0001,2]
[404622940,1770341315366,5973.50889833,0.0001,2]
[404622944,1770341335623,3523.98,0.00012298,2]
[404622945,1770341368646,-978.87325054,0.000129,4]
[404622946,1770341368721,502.52110167,0.00012835,2]
[404622947,1770341368742,5939.76111133,0.00012835,2]
[404622948,1770341374686,-878.88325054,0.000129,4]
[404622949,1770341374714,-3242.24349892,0.000129,4]
[404622950,1770341381102,1441.66474,0.00012835,2]
[404622951,1770341391773,200.0,0.000126,4]
[404622952,1770341393857,500.0,0.000127,4]
[404622953,1770341395948,700.0,0.000128,4]
[404622954,1770341399948,465.7784,0.000127,2]
[404623046,1770341432353,-1000.0,0.000129,4]
[404623048,1770341432362,-143.368815,0.00012949,2]
[404623049,1770341432375,-112.631185,0.00012949,2]
[404623050,1770341432385,-250.0,0.00012949,2]
[404623051,1770341432395,-218.28887698,0.0001295,2]
[404623052,1770341432406,-1537.87513998,0.0001295,2]
[404623053,1770341432415,-290.76088901,0.0001295,2]
[404623054,1770341432427,-345.51780687,0.0001295,2]
[404623055,1770341432439,-663.58112188,0.0001295,2]
[404623056,1770341432449,-2838.41071575,0.0001295,2]
[404623057,1770341432460,-11519.96923083,0.0001295,2]
[404623058,1770341432473,-3528.14577167,0.0001295,2]
[404623059,1770341432485,-36664.04664727,0.0001295,2]
[404623060,1770341432495,-1200.0,0.00012999,2]
[404623061,1770341432510,-300.0,0.00012999,2]
[404623062,1770341432520,-300.0,0.00012999,2]
[404623063,1770341432530,-1200.0,0.00012999,2]
[404623064,1770341432539,-300.0,0.00012999,2]
[404623065,1770341432549,-5616.05269721,0.00013,2]
[404623066,1770341432559,-4435.53408786,0.00013,2]
[404623067,1770341432569,-151.0,0.00013044,2]
[404623068,1770341432578,-363.99854049,0.00013045,2]
[404623069,1770341432588,-253.04344025,0.00013046,2]
[404623070,1770341432597,-500.0,0.00013046,2]
[404623072,1770341432608,-500.0,0.00013046,2]
[404623074,1770341432622,-500.0,0.00013046,2]
[404623076,1770341432631,-500.0,0.00013046,2]
[404623078,1770341432640,-500.0,0.00013046,2]
[404623080,1770341432652,-500.0,0.00013046,2]
[404623082,1770341432662,-500.0,0.00013046,2]
[404623084,1770341432677,-500.0,0.00013046,2]
[404623086,1770341432686,-500.0,0.00013046,2]
[404623088,1770341432695,-500.0,0.00013046,2]
[404623090,1770341432705,-500.0,0.00013046,2]
[404623092,1770341432714,-500.0,0.00013046,2]
[404623095,1770341432734,-500.0,0.00013046,2]
[404623097,1770341432744,-500.0,0.00013046,2]
[404623099,1770341432756,-500.0,0.00013046,2]
[404623101,1770341432767,-500.0,0.00013046,2]
[404623103,1770341432776,-500.0,0.00013046,2]
[404623105,1770341432785,-500.0,0.00013046,2]
[404623107,1770341432795,-500.0,0.00013046,2]
[404623109,1770341432805,-500.0,0.00013046,2]
[404623111,1770341432815,-500.0,0.00013046,2]
[404623113,1770341432825,-500.0,0.00013046,2]
[404623115,1770341432835,-500.0,0.00013046,2]
[404623117,1770341432845,-500.0,0.00013046,2]
[404623119,1770341432854,-500.0,0.00013046,2]
[404623121,1770341432864,-500.0,0.00013046,2]
[404623123,1770341432874,-500.0,0.00013046,2]
[404623124,1770341432883,-500.0,0.00013046,2]
[404623125,1770341432892,-500.0,0.00013046,2]
[404623126,1770341432902,-500.0,0.00013046,2]
[404623127,1770341432911,-500.0,0.00013046,2]
[404623128,1770341432921,-500.0,0.00013046,2]
[404623129,1770341432930,-500.0,0.00013046,2]
[404623130,1770341432940,-500.0,0.00013046,2]
[404623131,1770341432949,-500.0,0.00013046,2]
[404623132,1770341432959,-500.0,0.00013046,2]
[404623133,1770341432968,-500.0,0.00013046,2]
[404623134,1770341432977,-500.0,0.00013046,2]
[404623135,1770341432986,-500.0,0.00013046,2]
[404623136,1770341432996,-500.0,0.00013046,2]
[404623137,1770341433008,-500.0,0.00013046,2]
[404623138,1770341433018,-500.0,0.00013046,2]
[404623139,1770341433028,-500.0,0.00013046,2]
[404623140,1770341433038,-500.0,0.00013046,2]
[404623141,1770341433048,-500.0,0.00013046,2]
[404623142,1770341433058,-500.0,0.00013046,2]
[404623143,1770341433068,-500.0,0.00013046,2]
[404623144,1770341433079,-500.0,0.00013046,2]
[404623145,1770341433089,-500.0,0.00013046,2]
[404623146,1770341433100,-500.0,0.00013046,2]
[404623147,1770341433110,-473.26761738,0.00013046,2]
[404623148,1770341433120,-500.0,0.00013046,2]
[404623149,1770341433130,-500.0,0.00013046,2]
[404623150,1770341433140,-500.0,0.00013046,2]
[404623151,1770341433150,-500.0,0.00013046,2]
[404623152,1770341433161,-500.0,0.00013046,2]
[404623153,1770341433171,-500.0,0.00013046,2]
[404623154,1770341433182,-500.0,0.00013046,2]
[404623155,1770341433192,-500.0,0.00013046,2]
[404623156,1770341433202,-500.0,0.00013046,2]
[404623157,1770341433211,-150.0,0.00013046,2]
[404623158,1770341433220,-73448.97399607,0.00013047,2]
[404623159,1770341433234,-532.82685681,0.00013047,2]
[404623160,1770341433505,-500.0,0.00013046,2]
[404623161,1770341433515,-500.0,0.00013046,2]
[404623162,1770341433525,-500.0,0.00013046,2]
[404623163,1770341433535,-1003.4613006,0.00013047,2]
[404623182,1770341438451,-500.0,0.00013046,2]
[404623183,1770341438462,-470.91939338,0.00013046,2]
[404623184,1770341438473,-29.08060662,0.00013046,2]
[404623185,1770341438483,-500.0,0.00013046,2]
[404623186,1770341438493,-500.0,0.00013046,2]
[404623187,1770341438502,-3208.74800616,0.00013047,2]
[404623188,1770341438518,-1695.577059,0.00013047,2]
[404623189,1770341438530,-3221.15000001,0.00013047,2]
[404623190,1770341438545,-635.62747341,0.00013047,2]
[404623247,1770341446487,-4629.03457586,0.00013047,2]
[404623248,1770341446498,-33681.43411693,0.00013047,2]
[404623249,1770341446510,-822.78396786,0.00013047,2]
[404623250,1770341446525,-1260.00000002,0.00013047,2]
[404623251,1770341446797,-1539.42499606,0.00013047,2]
[404623252,1770341446980,-1051.62888184,0.00013047,2]
[404623262,1770341491955,4882.403,0.00012786,2]
[404623263,1770341491991,117.607,0.00012786,2]
[404623264,1770341492012,197.441,0.00012786,2]
[404623280,1770341585696,-2660.90426,0.000129,2]
[404623283,1770341585776,-5000.01,0.000129,2]
[404623284,1770341585901,-5000.01,0.000129,2]
[404623285,1770341586028,-5000.01,0.000129,2]
[404623286,1770341586160,-5000.01,0.000129,2]
[404623287,1770341588405,-5000.01,0.000129,2]
[404623288,1770341588523,-5000.01,0.000129,2]
[404623289,1770341589884,216.74,0.00012422,2]
[404623290,1770341591514,-5000.01,0.000129,2]
[404623291,1770341591845,-5000.01,0.000129,2]
[404623292,1770341592070,-5000.01,0.000129,2]
[404623293,1770341592188,-5000.01,0.000129,2]
[404623294,1770341622643,219.78249421,0.00012844,2]
[404623295,1770341633907,1571.21693681,0.00012844,2]
[404623297,1770341645736,5000.01,0.00012844,2]
[404623298,1770341645764,8428.79306319,0.00012844,2]
[404623299,1770341645791,10000.01,0.00012844,2]
[404623300,1770341645818,10000.01,0.00012844,2]
[404623301,1770341645843,4685.30351886,0.00012844,2]
[404623302,1770341682457,1139.80068394,0.00012844,2]
[404623311,1770341724312,4174.9057972,0.00012378,2]
[404623312,1770341724334,5372.6042028,0.00012378,2]
[404623313,1770341750757,326.0,0.00022,120]
[404623314,1770341754091,1047.47795788,0.000128,2]
[404623317,1770341772305,350.25238221,0.000128,2]
[404623318,1770341798185,3229.67545711,0.00012844,2]
[404623319,1770341798214,10000.01,0.00012844,2]
[404623320,1770341798237,10000.01,0.00012844,2]
[404623321,1770341798262,10000.01,0.00012844,2]
[404623322,1770341798288,10000.01,0.00012844,2]
[404623323,1770341798312,6090.65298294,0.00012844,2]
[404623326,1770341874296,698.31863858,0.00012844,2]
[404623329,1770341898960,9301.69136142,0.000128,2]
[404623330,1770341898985,10000.01,0.000128,2]
[404623331,1770341899010,10000.01,0.000128,2]
[404623332,1770341899033,10000.01,0.000128,2]
[404623334,1770341964607,-151.0,0.00012797,2]
[404623335,1770341964630,-242.99168646,0.00012799,2]